fUST/lending_fUST_20241203
["ID","MTS","AMOUNT","RATE_DAILY","PERIOD"]
[344011098,1733194246235,-644.74,0.00028219,7]
[344011099,1733194246244,-500.0,0.00028219,7]
[344011100,1733194246254,-690.5,0.00028219,7]
[344011101,1733194246263,-500.0,0.00028219,7]
[344011102,1733194246353,-574.52716671,0.00028219,7]
[344011103,1733194246365,-500.0,0.00028219,7]
[344011104,1733194246374,-1762.75,0.00028219,7]
[344011105,1733194246384,-500.0,0.00028219,7]
[344011106,1733194246393,-1177.94,0.00028219,7]
[344011107,1733194246402,-500.0,0.00028219,7]
[344011108,1733194246412,-581.51718277,0.00028219,7]
[344011109,1733194246421,-500.0,0.00028493,7]
[344011110,1733194246431,-644.74,0.00028493,7]
[344011111,1733194246440,-500.0,0.00028493,7]
[344011112,1733194246449,-690.5,0.00028493,7]
[344011113,1733194246458,-500.0,0.00028493,7]
[344011114,1733194246468,-500.0,0.00028493,7]
[344011115,1733194246477,-1762.75,0.00028493,7]
[344011116,1733194246487,-500.0,0.00028493,7]
[344011117,1733194246496,-1177.94,0.00028493,7]
[344011118,1733194246506,-500.0,0.00028493,7]
[344011119,1733194246517,-160.63184374,0.00028499,10]
[344011120,1733194246526,-158.26908841,0.00028766,2]
[344011121,1733194246536,-401.60596507,0.00028766,2]
[344011122,1733194246546,-500.0,0.00028766,2]
[344011123,1733194246555,-500.0,0.00028766,2]
[344011124,1733194246565,-500.0,0.00028766,2]
[344011125,1733194246574,-500.0,0.00028766,2]
[344011126,1733194246584,-500.0,0.00028766,2]
[344011127,1733194246594,-500.0,0.00028766,2]
[344011128,1733194246603,-175.91364884,0.00028766,2]
[344011129,1733194246613,-500.0,0.00028766,2]
[344011130,1733194246623,-500.0,0.00028766,2]
[344011131,1733194246632,-500.0,0.00028766,2]
[344011132,1733194246641,-494.72820952,0.00028766,2]
[344011133,1733194246650,-500.0,0.00028766,2]
[344011134,1733194246659,-500.0,0.00028767,7]
[344011135,1733194246668,-644.74,0.00028767,7]
[344011136,1733194246677,-489.54550988,0.00028767,7]
[344011137,1733194246687,-690.5,0.00028767,7]
[344011138,1733194246698,-454.00266104,0.00028767,7]
[344011139,1733194246708,-500.0,0.00028767,7]
[344011140,1733194246719,-1762.75,0.00028767,7]
[344011141,1733194246728,-500.0,0.00028767,7]
[344011142,1733194246737,-1177.94,0.00028767,7]
[344011143,1733194246747,-500.0,0.00028767,7]
[344011144,1733194246756,-413.43,0.000289,31]
[344011145,1733194246766,-413.43,0.000289,31]
[344011146,1733194246775,-413.43,0.000289,31]
[344011147,1733194246785,-413.43,0.000289,31]
[344011148,1733194246795,-413.43,0.000289,31]
[344011149,1733194246805,-413.43,0.000289,31]
[344011150,1733194246814,-413.43,0.000289,31]
[344011151,1733194246824,-413.43,0.000289,31]
[344011152,1733194246834,-413.43,0.000289,31]
[344011153,1733194246844,-413.43,0.000289,31]
[344011154,1733194246853,-413.43,0.000289,31]
[344011155,1733194246863,-413.43,0.000289,31]
[344011156,1733194246873,-500.0,0.00029041,7]
[344011157,1733194246882,-644.74,0.00029041,7]
[344011158,1733194246892,-690.5,0.00029041,7]
[344011159,1733194246902,-500.0,0.00029041,7]
[344011160,1733194246911,-1762.75,0.00029041,7]
[344011161,1733194246921,-500.0,0.00029041,7]
[344011162,1733194246931,-1177.94,0.00029041,7]
[344011163,1733194246941,-500.0,0.00029041,7]
[344011164,1733194246951,-153.0,0.00029206,2]
[344011165,1733194246961,-500.0,0.00029315,7]
[344011166,1733194246972,-644.74,0.00029315,7]
[344011167,1733194246981,-690.5,0.00029315,7]
[344011168,1733194246990,-500.0,0.00029315,7]
[344011169,1733194247000,-1762.75,0.00029315,7]
[344011170,1733194247009,-500.0,0.00029315,7]
[344011171,1733194247019,-1177.94,0.00029315,7]
[344011172,1733194247028,-500.0,0.00029315,7]
[344011173,1733194247037,-420.0,0.00029528,2]
[344011174,1733194247047,-500.0,0.00029589,7]
[344011175,1733194247057,-644.74,0.00029589,7]
[344011176,1733194247066,-690.5,0.00029589,7]
[344011177,1733194247078,-500.0,0.00029589,7]
[344011178,1733194247087,-1762.75,0.00029589,7]
[344011179,1733194247096,-500.0,0.00029589,7]
[344011180,1733194247106,-1177.94,0.00029589,7]
[344011181,1733194247115,-425.17559885,0.00029589,7]
[344011182,1733194247124,-500.0,0.00029863,7]
[344011183,1733194247135,-644.74,0.00029863,7]
[344011184,1733194247144,-690.5,0.00029863,7]
[344011185,1733194247154,-500.0,0.00029863,7]
[344011186,1733194247163,-1762.75,0.00029863,7]
[344011187,1733194247172,-500.0,0.00029863,7]
[344011188,1733194247182,-1177.94,0.00029863,7]
[344011189,1733194247192,-413.43,0.000299,31]
[344011190,1733194247201,-413.43,0.000299,31]
[344011191,1733194247211,-413.43,0.000299,31]
[344011192,1733194247224,-413.43,0.000299,31]
[344011193,1733194247233,-413.43,0.000299,31]
[344011194,1733194247243,-413.43,0.000299,31]
[344011195,1733194247252,-413.43,0.000299,31]
[344011196,1733194247262,-413.43,0.000299,31]
[344011197,1733194247272,-413.43,0.000299,31]
[344011198,1733194247281,-413.43,0.000299,31]
[344011199,1733194247291,-413.43,0.000299,31]
[344011200,1733194247301,-413.43,0.000299,31]
[344011201,1733194247311,-413.43,0.000299,31]
[344011202,1733194247320,-413.43,0.000299,31]
[344011203,1733194247330,-413.43,0.000299,31]
[344011204,1733194247339,-413.43,0.000299,31]
[344011205,1733194247349,-413.43,0.000299,31]
[344011206,1733194247359,-413.43,0.000299,31]
[344011207,1733194247368,-413.43,0.000299,31]
[344011208,1733194247378,-413.43,0.000299,31]
[344011209,1733194247388,-413.43,0.000299,31]
[344011210,1733194247398,-413.43,0.000299,31]
[344011211,1733194247407,-413.43,0.000299,31]
[344011212,1733194247417,-413.43,0.000299,31]
[344011213,1733194247427,-501.91232769,0.00029967,5]
[344011214,1733194247437,-239.92095418,0.00029967,5]
[344011215,1733194247447,-155.0,0.0003,2]
[344011216,1733194247456,-280.0,0.0003,2]
[344011217,1733194247467,-420.0,0.00030054,2]
[344011218,1733194247478,-500.0,0.00030136,7]
[344011219,1733194247488,-644.74,0.00030136,7]
[344011220,1733194247497,-690.5,0.00030136,7]
[344011221,1733194247507,-500.0,0.00030136,7]
[344011222,1733194247519,-1762.75,0.00030136,7]
[344011223,1733194247528,-500.0,0.00030136,7]
[344011224,1733194247538,-1177.94,0.00030136,7]
[344011225,1733194247547,-181.442361,0.00030137,120]
[344011226,1733194247558,-610.3,0.0003021,30]
[344011227,1733194247568,-150.0,0.00030323,2]
[344011228,1733194247578,-285.138,0.00030323,2]
[344011229,1733194247588,-660.78376929,0.00030323,2]
[344011233,1733194544570,555.0,0.00025,120]
[344011234,1733194566523,524.0,0.00026,60]
[344011243,1733195042895,-1169.27083333,0.0002,2]
[344011245,1733195058538,1169.27083333,0.0002,2]
[344011247,1733195133749,1169.27083333,0.0002,2]
[344011248,1733195154109,-172.074174,0.00026993,2]
[344011249,1733195154131,-151.01598931,0.000273,2]
[344011250,1733195194987,1641.34,0.00026,60]
[344011251,1733195212517,1169.27083333,0.0002,2]
[344011252,1733195235097,-237.8528,0.00026904,30]
[344011253,1733195235119,-59.16110996,0.000273,2]
[344011254,1733195246126,-225.71432549,0.000273,2]
[344011255,1733195290716,1169.27083333,0.0002,2]
[344011268,1733195432550,-1169.27083333,0.0002584,2]
[344011270,1733195432560,-300.0,0.00027299,2]
[344011272,1733195432570,-300.0,0.00027299,2]
[344011274,1733195432580,-4286.28663524,0.000273,2]
[344011276,1733195432589,-179.724,0.00027323,2]
[344011278,1733195432599,-150.0,0.00027323,2]
[344011280,1733195432609,-250.434,0.00027323,2]
[344011283,1733195432619,-2173.0,0.00027323,2]
[344011285,1733195432629,-1714.217,0.00027323,2]
[344011287,1733195432639,-204.69096131,0.00027397,7]
[344011289,1733195432648,-500.0,0.00027397,7]
[344011291,1733195432658,-255.0683066,0.00027397,7]
[344011293,1733195432668,-500.0,0.00027397,7]
[344011294,1733195432681,-500.0,0.00027397,7]
[344011297,1733195432691,-500.0,0.00027397,2]
[344011299,1733195432700,-500.0,0.00027397,7]
[344011301,1733195432710,-500.0,0.00027671,7]
[344011302,1733195432721,-500.0,0.00027671,7]
[344011304,1733195432731,-500.0,0.00027671,7]
[344011307,1733195432740,-500.0,0.00027671,7]
[344011308,1733195432750,-882.68417812,0.00027852,3]
[344011311,1733195432760,-1181.28,0.00027943,7]
[344011313,1733195432769,-500.0,0.00027944,7]
[344011315,1733195432779,-500.0,0.00027945,7]
[344011317,1733195432788,-500.0,0.00027945,7]
[344011319,1733195432798,-500.0,0.00027945,7]
[344011321,1733195432807,-500.0,0.00027945,7]
[344011323,1733195432816,-2029.86897888,0.00028,2]
[344011324,1733195432825,-33679.29921192,0.00028,120]
[344011327,1733195432835,-1181.28,0.00028217,7]
[344011329,1733195432845,-789.9,0.00028218,7]
[344011330,1733195432855,-1169.27083333,0.00028218,7]
[344011332,1733195432864,-500.0,0.00028218,7]
[344011334,1733195432875,-306.43552338,0.00028219,7]
[344011336,1733195432886,-500.0,0.00028219,7]
[344011338,1733195432896,-500.0,0.00028219,7]
[344011341,1733195432905,-500.0,0.00028219,7]
[344011343,1733195432915,-1181.28,0.00028491,7]
[344011345,1733195432927,-789.9,0.00028492,7]
[344011346,1733195432936,-500.0,0.00028492,7]
[344011348,1733195432946,-500.0,0.00028493,7]
[344011350,1733195432957,-500.0,0.00028493,7]
[344011352,1733195432967,-500.0,0.00028493,7]
[344011354,1733195432976,-1181.28,0.00028765,7]
[344011356,1733195432985,-789.9,0.00028766,7]
[344011358,1733195432994,-500.0,0.00028766,7]
[344011360,1733195433003,-500.0,0.00028767,7]
[344011362,1733195433013,-500.0,0.00028767,7]
[344011364,1733195433023,-500.0,0.00028767,7]
[344011366,1733195433032,-1169.27083333,0.00028767,7]
[344011368,1733195433043,-260.72,0.000289,31]
[344011370,1733195433053,-260.72,0.000289,31]
[344011372,1733195433062,-260.72,0.000289,31]
[344011374,1733195433072,-260.72,0.000289,31]
[344011376,1733195433082,-260.72,0.000289,31]
[344011378,1733195433092,-260.72,0.000289,31]
[344011380,1733195433102,-260.72,0.000289,31]
[344011382,1733195433112,-260.72,0.000289,31]
[344011384,1733195433122,-260.72,0.000289,31]
[344011386,1733195433132,-260.72,0.000289,31]
[344011388,1733195433142,-260.72,0.000289,31]
[344011389,1733195433152,-260.72,0.000289,31]
[344011390,1733195433161,-1181.28,0.00029039,7]
[344011391,1733195433171,-789.9,0.0002904,7]
[344011392,1733195433183,-500.0,0.0002904,7]
[344011393,1733195433193,-500.0,0.00029041,7]
[344011394,1733195433202,-500.0,0.00029041,7]
[344011395,1733195433212,-500.0,0.00029041,7]
[344011396,1733195433222,-153.0,0.00029164,2]
[344011397,1733195433231,-1181.28,0.00029313,7]
[344011398,1733195433242,-789.9,0.00029314,7]
[344011399,1733195433252,-500.0,0.00029314,7]
[344011400,1733195433261,-500.0,0.00029315,7]
[344011401,1733195433271,-500.0,0.00029315,7]
[344011402,1733195433282,-500.0,0.00029315,7]
[344011403,1733195433292,-420.0,0.00029504,2]
[344011404,1733195433302,-1181.28,0.00029587,7]
[344011405,1733195433311,-789.9,0.00029588,7]
[344011406,1733195433322,-500.0,0.00029588,7]
[344011407,1733195433331,-500.0,0.00029589,7]
[344011408,1733195433341,-500.0,0.00029589,7]
[344011409,1733195433351,-500.0,0.00029589,7]
[344011410,1733195433360,-780.88049197,0.00029589,7]
[344011415,1733195434635,158.92975428,0.00013973,2]
[344011416,1733195434659,1.07024572,0.00013973,2]
[344011422,1733195438438,-35.89890704,0.00029039,2]
[344011423,1733195438534,-215.75782565,0.00029039,2]
[344011424,1733195438544,-388.39034136,0.00029589,7]
[344011425,1733195438555,-48.05971832,0.00029861,7]
[344011427,1733195440319,-25.0793695,0.00029861,7]
[344011428,1733195440331,-332.40682402,0.00029861,7]
[344011429,1733195440343,-701.2570015,0.00029861,7]
[344011441,1733195443408,-74.47708666,0.00029861,7]
[344011442,1733195443419,-789.9,0.00029862,7]
[344011443,1733195443431,-500.0,0.00029862,7]
[344011444,1733195443441,-500.0,0.00029863,7]
[344011445,1733195443451,-500.0,0.00029863,7]
[344011446,1733195443460,-500.0,0.00029863,7]
[344011447,1733195443470,-260.72,0.000299,31]
[344011448,1733195443480,-260.72,0.000299,31]
[344011449,1733195443490,-260.72,0.000299,31]
[344011450,1733195443500,-260.72,0.000299,31]
[344011452,1733195443509,-260.72,0.000299,31]
[344011453,1733195443519,-260.72,0.000299,31]
[344011455,1733195443528,-260.72,0.000299,31]
[344011456,1733195443537,-260.72,0.000299,31]
[344011457,1733195443547,-260.72,0.000299,31]
[344011458,1733195443556,-260.72,0.000299,31]
[344011459,1733195443566,-260.72,0.000299,31]
[344011460,1733195443575,-260.72,0.000299,31]
[344011461,1733195443584,-260.72,0.000299,31]
[344011462,1733195443594,-260.72,0.000299,31]
[344011463,1733195443602,-260.72,0.000299,31]
[344011465,1733195443612,-260.72,0.000299,31]
[344011467,1733195443622,-260.72,0.000299,31]
[344011469,1733195443631,-260.72,0.000299,31]
[344011471,1733195443641,-260.72,0.000299,31]
[344011473,1733195443650,-260.72,0.000299,31]
[344011474,1733195443659,-260.72,0.000299,31]
[344011476,1733195443669,-260.72,0.000299,31]
[344011478,1733195443681,-260.72,0.000299,31]
[344011480,1733195443690,-260.72,0.000299,31]
[344011481,1733195443699,-233.0,0.0003,2]
[344011482,1733195443708,-188.6655,0.0003,2]
[344011483,1733195443718,-234.0,0.0003,2]
[344011485,1733195443727,-155.0,0.0003,2]
[344011487,1733195443737,-420.0,0.00030029,2]
[344011488,1733195443746,-559.4,0.00030066,30]
[344011489,1733195443756,-1181.28,0.00030135,7]
[344011490,1733195443765,-500.0,0.00030136,7]
[344011491,1733195443774,-500.0,0.00030136,7]
[344011492,1733195443784,-500.0,0.00030136,7]
[344011493,1733195443794,-789.9,0.00030136,7]
[344011494,1733195443803,-500.0,0.00030136,7]
[344011495,1733195443813,-181.442361,0.00030137,120]
[344011496,1733195443822,-73.63183644,0.00030323,2]
[344011517,1733195547675,304.78,0.00024953,2]
[344011526,1733196011199,1169.27083333,0.0002,2]
[344011531,1733196295362,2451.29456399,0.0002,2]
[344011535,1733196339079,1169.27083333,0.0002,2]
[344011538,1733196391687,1633.47832598,0.0002,2]
[344011539,1733196454142,-195.35542666,0.00020265,2]
[344011540,1733196454171,-178.21089689,0.00020707,2]
[344011542,1733196515216,939.14219542,0.0002,2]
[344011552,1733196547113,-1169.27083333,0.00020354,2]
[344011553,1733196547135,-4246.25304818,0.00023,2]
[344011554,1733196547158,-2934.0,0.0002341,2]
[344011555,1733196547181,-378.034883,0.00024013,2]
[344011556,1733196547204,-250.0,0.0002483,2]
[344011557,1733196547233,-300.0,0.00024854,2]
[344011558,1733196547258,-300.0,0.00024855,2]
[344011559,1733196547283,-24900.0,0.00024856,2]
[344011560,1733196547306,-7725.55822838,0.0002489,2]
[344011561,1733196547331,-500.0,0.00024973,2]
[344011562,1733196547354,-171.99199537,0.00024973,2]
[344011563,1733196547377,-513.73402035,0.00024973,2]
[344011564,1733196547398,-374.96339222,0.00024973,2]
[344011565,1733196547421,-445.61,0.00024989,10]
[344011566,1733196547443,-500.0,0.00024999,2]
[344011567,1733196547469,-500.0,0.00024999,2]
[344011568,1733196547490,-500.0,0.00024999,2]
[344011569,1733196547512,-500.0,0.00024999,2]
[344011570,1733196547533,-403.07275195,0.00024999,2]
[344011571,1733196547557,-500.0,0.00024999,2]
[344011572,1733196547578,-441.15009151,0.00024999,2]
[344011573,1733196547600,-500.0,0.00024999,2]
[344011574,1733196547623,-579.60785706,0.00024999,2]
[344011575,1733196547645,-518.76124394,0.00024999,2]
[344011576,1733196547667,-169.7435593,0.00024999,2]
[344011577,1733196547689,-500.0,0.00024999,2]
[344011578,1733196547722,-500.0,0.00024999,2]
[344011579,1733196547748,-500.0,0.00024999,2]
[344011580,1733196547771,-500.0,0.00024999,2]
[344011581,1733196547795,-500.0,0.00024999,2]
[344011582,1733196547817,-500.0,0.00024999,2]
[344011583,1733196547841,-500.0,0.00024999,2]
[344011584,1733196547864,-500.0,0.00024999,2]
[344011585,1733196547888,-500.0,0.00024999,2]
[344011586,1733196547911,-500.0,0.00024999,2]
[344011587,1733196547934,-500.0,0.00024999,2]
[344011588,1733196547958,-500.0,0.00024999,2]
[344011589,1733196547984,-500.0,0.00024999,2]
[344011590,1733196548005,-500.0,0.00024999,2]
[344011591,1733196548028,-500.0,0.00024999,2]
[344011592,1733196548051,-536.96869717,0.00024999,2]
[344011593,1733196548169,-500.0,0.00024999,2]
[344011594,1733196548194,-500.0,0.00024999,2]
[344011595,1733196548228,-500.0,0.00024999,2]
[344011596,1733196548253,-500.0,0.00024999,2]
[344011597,1733196548276,-200.0,0.00024999,2]
[344011598,1733196548300,-500.0,0.00024999,2]
[344011599,1733196548325,-500.0,0.00024999,2]
[344011600,1733196548348,-500.0,0.00024999,2]
[344011601,1733196548371,-500.0,0.00024999,2]
[344011602,1733196548395,-500.0,0.00024999,2]
[344011603,1733196548419,-500.0,0.00024999,2]
[344011604,1733196548442,-500.0,0.00024999,2]
[344011605,1733196548464,-500.0,0.00024999,2]
[344011606,1733196548491,-500.0,0.00024999,2]
[344011607,1733196548515,-500.0,0.00024999,2]
[344011608,1733196548538,-500.0,0.00024999,2]
[344011609,1733196548562,-500.0,0.00024999,2]
[344011610,1733196548586,-300.0,0.00024999,2]
[344011611,1733196548610,-500.0,0.00024999,2]
[344011612,1733196548637,-500.0,0.00024999,2]
[344011613,1733196548661,-500.0,0.00024999,2]
[344011614,1733196548684,-500.0,0.00024999,2]
[344011615,1733196548707,-500.0,0.00024999,2]
[344011616,1733196548732,-500.0,0.00024999,2]
[344011617,1733196548756,-500.0,0.00024999,2]
[344011618,1733196548780,-500.0,0.00024999,2]
[344011619,1733196548804,-500.0,0.00024999,2]
[344011620,1733196548828,-500.0,0.00024999,2]
[344011621,1733196548851,-500.0,0.00024999,2]
[344011622,1733196548874,-500.0,0.00024999,2]
[344011623,1733196548897,-600.0,0.00024999,2]
[344011624,1733196548921,-500.0,0.00024999,2]
[344011625,1733196548944,-500.0,0.00024999,2]
[344011626,1733196548967,-500.0,0.00024999,2]
[344011627,1733196548991,-500.0,0.00024999,2]
[344011628,1733196549015,-500.0,0.00024999,2]
[344011629,1733196549039,-500.0,0.00024999,2]
[344011630,1733196549062,-500.0,0.00024999,2]
[344011631,1733196549087,-500.0,0.00024999,2]
[344011632,1733196549111,-500.0,0.00024999,2]
[344011633,1733196549134,-49.42608784,0.00024999,2]
[344011634,1733196549169,-450.57391216,0.00024999,2]
[344011635,1733196549192,-500.0,0.00024999,2]
[344011636,1733196549219,-500.0,0.00024999,2]
[344011637,1733196549242,-611.56545478,0.00024999,2]
[344011638,1733196549267,-500.0,0.00024999,2]
[344011639,1733196549293,-500.0,0.00024999,2]
[344011640,1733196549317,-500.0,0.00024999,2]
[344011641,1733196549341,-500.0,0.00024999,2]
[344011642,1733196549365,-500.0,0.00024999,2]
[344011643,1733196549390,-500.0,0.00024999,2]
[344011644,1733196549414,-500.0,0.00024999,2]
[344011645,1733196549439,-500.0,0.00024999,2]
[344011646,1733196549464,-500.0,0.00024999,2]
[344011647,1733196549491,-519.69435126,0.00024999,2]
[344011648,1733196549516,-500.0,0.00024999,2]
[344011649,1733196549541,-500.0,0.00024999,2]
[344011650,1733196549567,-500.0,0.00024999,2]
[344011651,1733196549592,-500.0,0.00024999,2]
[344011652,1733196549618,-500.0,0.00024999,2]
[344011653,1733196549644,-500.0,0.00024999,2]
[344011654,1733196549669,-500.0,0.00024999,2]
[344011655,1733196549694,-500.0,0.00024999,2]
[344011656,1733196549718,-500.0,0.00024999,2]
[344011657,1733196549741,-500.0,0.00024999,2]
[344011658,1733196549766,-500.0,0.00024999,2]
[344011659,1733196549790,-500.0,0.00024999,2]
[344011660,1733196549817,-500.0,0.00024999,2]
[344011661,1733196549843,-500.0,0.00024999,2]
[344011662,1733196549868,-500.0,0.00024999,2]
[344011663,1733196549893,-500.0,0.00024999,2]
[344011664,1733196549919,-500.0,0.00024999,2]
[344011665,1733196549943,-500.0,0.00024999,2]
[344011666,1733196549970,-500.0,0.00024999,2]
[344011667,1733196549994,-500.0,0.00024999,2]
[344011668,1733196550019,-500.0,0.00024999,2]
[344011669,1733196550044,-500.0,0.00024999,2]
[344011670,1733196550069,-500.0,0.00024999,2]
[344011671,1733196550094,-500.0,0.00024999,2]
[344011672,1733196550119,-500.0,0.00024999,2]
[344011673,1733196550146,-500.0,0.00024999,2]
[344011674,1733196550174,-500.0,0.00024999,2]
[344011675,1733196550200,-500.0,0.00024999,2]
[344011676,1733196550228,-500.0,0.00024999,2]
[344011677,1733196550254,-500.0,0.00024999,2]
[344011678,1733196550282,-500.0,0.00024999,2]
[344011679,1733196550308,-500.0,0.00024999,2]
[344011680,1733196550331,-500.0,0.00024999,2]
[344011681,1733196550356,-500.0,0.00024999,2]
[344011682,1733196550378,-500.0,0.00024999,2]
[344011683,1733196550485,-500.0,0.00024999,2]
[344011684,1733196550510,-500.0,0.00024999,2]
[344011685,1733196550534,-500.0,0.00024999,2]
[344011686,1733196550558,-500.0,0.00024999,2]
[344011687,1733196550582,-500.0,0.00024999,2]
[344011688,1733196550605,-500.0,0.00024999,2]
[344011689,1733196550629,-500.0,0.00024999,2]
[344011690,1733196550650,-500.0,0.00024999,2]
[344011691,1733196550675,-500.0,0.00024999,2]
[344011692,1733196550698,-500.0,0.00024999,2]
[344011693,1733196550722,-500.0,0.00024999,2]
[344011694,1733196550744,-500.0,0.00024999,2]
[344011695,1733196550767,-500.0,0.00024999,2]
[344011696,1733196550790,-500.0,0.00024999,2]
[344011697,1733196550814,-500.0,0.00024999,2]
[344011698,1733196550835,-500.0,0.00024999,2]
[344011699,1733196550859,-500.0,0.00024999,2]
[344011700,1733196550881,-500.0,0.00024999,2]
[344011701,1733196550902,-500.0,0.00024999,2]
[344011702,1733196550922,-500.0,0.00024999,2]
[344011703,1733196550945,-500.0,0.00024999,2]
[344011704,1733196550967,-500.0,0.00024999,2]
[344011705,1733196550992,-500.0,0.00024999,2]
[344011706,1733196551013,-500.0,0.00024999,2]
[344011707,1733196551036,-500.0,0.00024999,2]
[344011708,1733196551059,-500.0,0.00024999,2]
[344011709,1733196551080,-500.0,0.00024999,2]
[344011710,1733196551101,-500.0,0.00024999,2]
[344011711,1733196551125,-500.0,0.00024999,2]
[344011712,1733196551146,-500.0,0.00024999,2]
[344011713,1733196551169,-500.0,0.00024999,2]
[344011714,1733196551192,-500.0,0.00024999,2]
[344011715,1733196551214,-500.0,0.00024999,2]
[344011716,1733196551243,-500.0,0.00024999,2]
[344011717,1733196551266,-500.0,0.00024999,2]
[344011718,1733196551289,-500.0,0.00024999,2]
[344011719,1733196551314,-500.0,0.00024999,2]
[344011720,1733196551336,-500.0,0.00024999,2]
[344011721,1733196551359,-500.0,0.00024999,2]
[344011722,1733196551383,-500.0,0.00024999,2]
[344011723,1733196551405,-500.0,0.00024999,2]
[344011724,1733196551428,-500.0,0.00024999,2]
[344011725,1733196551451,-500.0,0.00024999,2]
[344011726,1733196551477,-500.0,0.00024999,2]
[344011727,1733196551501,-500.0,0.00024999,2]
[344011728,1733196551524,-500.0,0.00024999,2]
[344011729,1733196551549,-500.0,0.00024999,2]
[344011730,1733196551572,-500.0,0.00024999,2]
[344011731,1733196551595,-500.0,0.00024999,2]
[344011732,1733196551620,-500.0,0.00024999,2]
[344011733,1733196551643,-500.0,0.00024999,2]
[344011734,1733196551667,-500.0,0.00024999,2]
[344011735,1733196551689,-500.0,0.00024999,2]
[344011736,1733196551712,-500.0,0.00024999,2]
[344011737,1733196551736,-500.0,0.00024999,2]
[344011738,1733196551759,-500.0,0.00024999,2]
[344011739,1733196551780,-500.0,0.00024999,2]
[344011740,1733196551804,-500.0,0.00024999,2]
[344011741,1733196551826,-500.0,0.00024999,2]
[344011742,1733196551847,-500.0,0.00024999,2]
[344011743,1733196551869,-500.0,0.00024999,2]
[344011744,1733196551891,-500.0,0.00024999,2]
[344011745,1733196551913,-500.0,0.00024999,2]
[344011746,1733196551933,-500.0,0.00024999,2]
[344011747,1733196551955,-500.0,0.00024999,2]
[344011748,1733196551979,-500.0,0.00024999,2]
[344011749,1733196552003,-500.0,0.00024999,2]
[344011750,1733196552026,-500.0,0.00024999,2]
[344011751,1733196552049,-500.0,0.00024999,2]
[344011752,1733196552071,-500.0,0.00024999,2]
[344011753,1733196552093,-500.0,0.00024999,2]
[344011754,1733196552114,-440.32322376,0.00024999,2]
[344011755,1733196552137,-500.0,0.00024999,2]
[344011756,1733196552160,-500.0,0.00024999,2]
[344011757,1733196552182,-500.0,0.00024999,2]
[344011758,1733196552204,-500.0,0.00024999,2]
[344011759,1733196552230,-500.0,0.00024999,2]
[344011760,1733196552253,-500.0,0.00024999,2]
[344011761,1733196552276,-500.0,0.00024999,2]
[344011762,1733196552300,-337.6158366,0.00024999,2]